fUST/lending_fUST_20240919
["ID","MTS","AMOUNT","RATE_DAILY","PERIOD"]
[338515276,1726714247926,-151.0,0.00019021,2]
[338515278,1726714247936,-1000.0,0.00019022,2]
[338515280,1726714247945,-3000.0,0.0001903,2]
[338515282,1726714247955,-151.0,0.0001903,2]
[338515284,1726714247965,-257.066593,0.0001903,2]
[338515286,1726714247980,-257.066593,0.0001903,2]
[338515288,1726714247990,-247.387308,0.0001903,2]
[338515290,1726714247999,-247.387308,0.0001903,2]
[338515292,1726714248009,-3000.0,0.0001904,2]
[338515294,1726714248018,-1000.0,0.00019048,2]
[338515296,1726714248028,-1000.0,0.00019049,2]
[338515298,1726714248038,-3000.0,0.0001905,2]
[338515300,1726714248048,-1000.0,0.00019052,2]
[338515302,1726714248058,-3000.0,0.0001906,2]
[338515304,1726714248068,-151.0,0.0001906,2]
[338515306,1726714248082,-151.0,0.0001906,2]
[338515308,1726714248092,-207.42647,0.0001906,2]
[338515310,1726714248102,-744.023666,0.0001906,2]
[338515312,1726714248112,-744.023666,0.0001906,2]
[338515314,1726714248123,-150.329,0.00019068,2]
[338515316,1726714248134,-3000.0,0.0001907,2]
[338515318,1726714248144,-3000.0,0.0001908,2]
[338515321,1726714248157,-298.7,0.00019084,2]
[338515322,1726714248167,-3000.0,0.0001909,2]
[338515325,1726714248177,-184.0,0.000191,2]
[338515327,1726714248187,-151.0,0.000191,2]
[338515329,1726714248197,-594.877993,0.000191,2]
[338515330,1726714248205,-300.928134,0.000191,8]
[338515332,1726714248215,-3000.0,0.000191,2]
[338515334,1726714248225,-177.722328,0.0001911,2]
[338515336,1726714248235,-177.722328,0.0001911,2]
[338515338,1726714248245,-3000.0,0.0001911,2]
[338515341,1726714248255,-177.722328,0.00019111,2]
[338515343,1726714248264,-177.722328,0.00019111,2]
[338515345,1726714248275,-151.0,0.00019111,2]
[338515347,1726714248284,-618.229,0.00019111,2]
[338515349,1726714248294,-618.229,0.00019111,2]
[338515351,1726714248304,-176.05543,0.00019111,2]
[338515353,1726714248314,-151.0,0.00019111,2]
[338515355,1726714248323,-526.075588,0.00019111,2]
[338515357,1726714248333,-164.234392,0.00019111,2]
[338515359,1726714248342,-526.075588,0.00019111,2]
[338515361,1726714248352,-164.234392,0.00019111,2]
[338515363,1726714248362,-382.055356,0.00019111,2]
[338515365,1726714248371,-382.055356,0.00019111,2]
[338515367,1726714248380,-156.649782,0.00019111,2]
[338515369,1726714248389,-156.649782,0.00019111,2]
[338515370,1726714248399,-151.0,0.00019111,2]
[338515372,1726714248408,-151.0,0.00019111,2]
[338515375,1726714248418,-151.0,0.00019111,2]
[338515377,1726714248427,-151.0,0.00019111,2]
[338515379,1726714248437,-151.0,0.00019111,2]
[338515381,1726714248447,-151.0,0.00019111,2]
[338515382,1726714248457,-158.42257,0.00019111,2]
[338515385,1726714248468,-158.42257,0.00019111,2]
[338515387,1726714248479,-233.420226,0.00019111,2]
[338515389,1726714248490,-233.420226,0.00019111,2]
[338515391,1726714248499,-572.060225,0.00019111,2]
[338515393,1726714248508,-572.060225,0.00019111,2]
[338515395,1726714248518,-213.43022,0.00019111,2]
[338515396,1726714248527,-376.430546,0.00019111,2]
[338515398,1726714248537,-376.430546,0.00019111,2]
[338515400,1726714248546,-1460.542883,0.00019111,2]
[338515403,1726714248556,-1460.542883,0.00019111,2]
[338515404,1726714248566,-151.0,0.00019111,2]
[338515406,1726714248576,-151.0,0.00019111,2]
[338515409,1726714248587,-3000.0,0.0001912,2]
[338515411,1726714248596,-2860.218711,0.00019121,2]
[338515413,1726714248606,-573.519126,0.00019121,2]
[338515415,1726714248617,-2294.076504,0.00019121,2]
[338515417,1726714248626,-168.29875,0.00019121,2]
[338515419,1726714248636,-574.275837,0.00019121,2]
[338515421,1726714248645,-572.70464,0.00019121,2]
[338515423,1726714248655,-190.901548,0.00019121,2]
[338515425,1726714248665,-191.42528,0.00019121,2]
[338515427,1726714248675,-3000.0,0.0001913,2]
[338515429,1726714248685,-3000.0,0.0001914,2]
[338515431,1726714248696,-89695.10187173,0.0001915,2]
[338515433,1726714248705,-177.722328,0.0001915,2]
[338515435,1726714248715,-177.722328,0.0001915,2]
[338515437,1726714248725,-618.229,0.0001915,2]
[338515439,1726714248735,-618.229,0.0001915,2]
[338515441,1726714248745,-215.04334,0.0001915,2]
[338515443,1726714248754,-3000.0,0.0001915,2]
[338515445,1726714248765,-526.075588,0.0001915,2]
[338515447,1726714248774,-164.234392,0.0001915,2]
[338515449,1726714248784,-526.075588,0.0001915,2]
[338515451,1726714248795,-164.234392,0.0001915,2]
[338515453,1726714248804,-382.055356,0.0001915,2]
[338515455,1726714248814,-382.055356,0.0001915,2]
[338515457,1726714248825,-151.0,0.0001915,2]
[338515459,1726714248835,-257.066593,0.0001915,2]
[338515461,1726714248846,-257.066593,0.0001915,2]
[338515463,1726714248857,-151.0,0.0001915,2]
[338515465,1726714248866,-151.0,0.0001915,2]
[338515467,1726714248876,-744.023666,0.0001915,2]
[338515469,1726714248886,-744.023666,0.0001915,2]
[338515471,1726714248895,-156.649782,0.0001915,2]
[338515473,1726714248905,-156.649782,0.0001915,2]
[338515476,1726714248915,-247.387308,0.0001915,2]
[338515478,1726714248925,-247.387308,0.0001915,2]
[338515480,1726714248934,-151.0,0.0001915,2]
[338515482,1726714248944,-191.671447,0.0001915,2]
[338515484,1726714248953,-151.0,0.0001915,2]
[338515486,1726714248963,-151.0,0.0001915,2]
[338515488,1726714248973,-151.0,0.0001915,2]
[338515490,1726714248983,-170.307194,0.0001915,2]
[338515491,1726714248993,-158.42257,0.0001915,2]
[338515494,1726714249003,-158.42257,0.0001915,2]
[338515496,1726714249014,-233.420226,0.0001915,2]
[338515498,1726714249025,-233.420226,0.0001915,2]
[338515500,1726714249034,-572.060225,0.0001915,2]
[338515502,1726714249044,-572.060225,0.0001915,2]
[338515504,1726714249054,-376.430546,0.0001915,2]
[338515506,1726714249063,-376.430546,0.0001915,2]
[338515508,1726714249075,-1460.542883,0.0001915,2]
[338515510,1726714249085,-1002.84495923,0.0001915,2]
[338515513,1726714249102,-457.69792377,0.0001915,2]
[338515515,1726714249112,-151.0,0.0001915,2]
[338515517,1726714249123,-151.0,0.0001915,2]
[338515519,1726714249132,-151.0,0.0001915,2]
[338515521,1726714249142,-298.7,0.00019155,2]
[338515523,1726714249153,-244.2808,0.00019159,2]
[338515525,1726714249163,-652.50278911,0.0001916,2]
[338515527,1726714249174,-2347.49721089,0.0001916,2]
[338515529,1726714249185,-277.27786427,0.0001917,2]
[338515531,1726714249198,-2722.72213573,0.0001917,2]
[338515533,1726714249208,-500.0,0.0001917,2]
[338515535,1726714249218,-323.84011614,0.00019173,2]
[338515537,1726714249227,-500.0,0.00019173,2]
[338515539,1726714249237,-500.0,0.00019173,2]
[338515541,1726714249246,-39.63774813,0.00019173,2]
[338515667,1726714250445,-1052.45108978,0.00018663,2]
[338515669,1726714250455,-500.0,0.00018673,2]
[338515671,1726714250466,-461.22662,0.00019173,2]
[338515673,1726714250476,-500.0,0.00019173,2]
[338515675,1726714250486,-500.13048346,0.00019173,2]
[338515677,1726714250496,-500.0,0.00019173,2]
[338515679,1726714250506,-500.0,0.00019173,2]
[338515681,1726714250515,-500.0,0.00019173,2]
[338515683,1726714250525,-500.0,0.00019173,2]
[338515685,1726714250534,-500.3841266,0.00019173,2]
[338515687,1726714250544,-191.01702638,0.00019173,2]
[338515689,1726714250555,-500.44176556,0.00019173,2]
[338515691,1726714250566,-96134.28172876,0.00019177,2]
[338519365,1726714481358,5000.0,0.00024,120]
[338519371,1726714481729,5000.0,0.00024,120]
[338519379,1726714482099,5000.0,0.00024,120]
[338519384,1726714482457,5000.0,0.00024,120]
[338519390,1726714482805,5000.0,0.00024,120]
[338519397,1726714483156,5000.0,0.00024,120]
[338519406,1726714483569,5000.0,0.00024,120]
[338519410,1726714483887,5000.0,0.00024,120]
[338519416,1726714484519,5000.0,0.00024,120]
[338519421,1726714484722,5000.0,0.00024,120]
[338519426,1726714484942,5000.0,0.00024,120]
[338519430,1726714485306,5000.0,0.00024,120]
[338519433,1726714485676,5000.0,0.00024,120]
[338519437,1726714486014,5000.0,0.00024,120]
[338519443,1726714486375,5000.0,0.00024,120]
[338519446,1726714486743,5000.0,0.00024,120]
[338519451,1726714487205,5000.0,0.00024,120]
[338519453,1726714487483,5000.0,0.00024,120]
[338519459,1726714487833,5000.0,0.00024,120]
[338519851,1726714518170,1738.64,0.00024,120]
[338520086,1726714537554,944.09,0.00024,120]
[338520089,1726714537662,944.09,0.00024,120]
[338520094,1726714537914,944.09,0.00024,120]
[338520101,1726714538325,944.09,0.00024,120]
[338520103,1726714538434,480.78903154,0.00014,2]
[338520107,1726714538664,500.0,0.00024,120]
[338520112,1726714538927,944.09,0.00024,120]
[338520118,1726714539182,944.09,0.00024,120]
[338520120,1726714539246,500.0,0.00024,120]
[338520122,1726714539358,1196.8,0.00024,120]
[338520123,1726714539460,500.0,0.00024,120]
[338520124,1726714539517,944.09,0.00024,120]
[338520126,1726714539712,500.0,0.00024,120]
[338520132,1726714539986,944.09,0.00024,120]
[338520134,1726714540062,500.0,0.00024,120]
[338520136,1726714540127,500.0,0.00024,120]
[338520137,1726714540201,944.09,0.00024,120]
[338520139,1726714540267,500.0,0.00024,120]
[338520141,1726714540344,944.09,0.00024,120]
[338520142,1726714540406,500.0,0.00024,120]
[338520144,1726714540514,944.09,0.00024,120]
[338520146,1726714540578,537.05657791,0.00024,120]
[338520148,1726714540807,944.09,0.00024,120]
[338520151,1726714541035,944.09,0.00024,120]
[338520154,1726714541247,967.05,0.00024,120]
[338520155,1726714541311,944.09,0.00024,120]
[338520157,1726714541372,539.6,0.00024,120]
[338520159,1726714541553,944.09,0.00024,120]
[338520161,1726714541636,500.0,0.00024,120]
[338520164,1726714541851,944.09,0.00024,120]
[338520168,1726714542034,500.0,0.00024,120]
[338520170,1726714542120,944.09,0.00024,120]
[338520175,1726714542380,944.09,0.00024,120]
[338520180,1726714542677,944.09,0.00024,120]
[338520186,1726714542972,944.09,0.00024,120]
[338520191,1726714543232,944.09,0.00024,120]
[338520197,1726714543638,944.09,0.00024,120]
[338520200,1726714543749,500.0,0.00024,120]
[338520203,1726714543881,944.09,0.00024,120]
[338520206,1726714544082,529.71,0.00024,120]
[338520208,1726714544157,944.27277709,0.00024,120]
[338520211,1726714544331,529.71,0.00024,120]
[338520215,1726714544575,529.71,0.00024,120]
[338520219,1726714544830,529.71,0.00024,120]
[338520226,1726714545200,500.0,0.00024,120]
[338520227,1726714545279,529.71,0.00024,120]
[338520231,1726714545462,529.71,0.00024,120]
[338520236,1726714545702,529.71,0.00024,120]
[338520242,1726714546010,529.71,0.00024,120]
[338520244,1726714546071,500.0,0.00024,120]
[338520251,1726714546447,529.71,0.00024,120]
[338520253,1726714546518,183.09001356,0.00024,120]
[338520255,1726714546582,529.71,0.00024,120]
[338520257,1726714546747,1526.23,0.00024,120]
[338520258,1726714546808,743.27,0.00024,120]
[338520259,1726714546867,529.71,0.00024,120]
[338520260,1726714546925,1930.6,0.00024,120]
[338520263,1726714547134,529.71,0.00024,120]
[338520278,1726714548012,529.71,0.00024,120]
[338520281,1726714548097,529.71,0.00024,120]
[338520285,1726714548342,1039.11,0.00024,120]
[338520287,1726714548415,529.71,0.00024,120]
[338520290,1726714548583,731.81,0.00024,120]
[338520291,1726714548654,529.71,0.00024,120]
[338520293,1726714548726,594.89,0.00024,120]
[338520295,1726714548821,529.71,0.00024,120]
[338520298,1726714548936,529.71,0.00024,120]
[338520301,1726714549044,529.71,0.00024,120]
[338520304,1726714549311,529.71,0.00024,120]
[338520309,1726714549576,529.71,0.00024,120]
[338520313,1726714549847,529.71,0.00024,120]
[338520318,1726714550191,529.71,0.00024,120]
[338520319,1726714550300,500.0,0.00024,120]
[338520323,1726714550526,529.84378467,0.00024,120]
[338520332,1726714551274,482.68,0.00024,120]
[338520341,1726714551825,1106.67,0.00024,120]
[338520342,1726714551885,500.0,0.00024,120]
[338520359,1726714553088,770.69,0.00024,120]
[338520360,1726714553160,500.0,0.00024,120]
[338520371,1726714554639,664.84,0.00024,120]
[338520377,1726714555187,1283.75,0.00024,120]
[338520380,1726714555329,525.58,0.00024,120]
[338520389,1726714555937,500.0,0.00024,120]
[338520402,1726714556723,1366.76,0.00024,120]
[338520404,1726714556822,1014.8,0.00024,120]
[338520405,1726714557381,2154.48,0.00024,120]
[338520406,1726714559992,500.0,0.00024,120]
[338520407,1726714560540,500.69588203,0.00024,120]
[338520408,1726714560612,523.24,0.00024,120]
[338520409,1726714562671,500.0,0.00024,120]
[338520410,1726714562784,500.15474823,0.00024,120]
[338520411,1726714562858,506.13118977,0.00024,120]
[338520412,1726714563267,500.0,0.00024,120]
[338520413,1726714563793,500.0,0.00024,120]
[338520414,1726714564048,500.0,0.00024,120]
[338520416,1726714566431,500.0,0.00024,120]
[338520417,1726714566496,949.94,0.00024,120]
[338520418,1726714572390,655.47,0.00024,120]
[338520419,1726714572534,181.07280234,0.00024,120]
[338520420,1726714572607,500.0,0.00024,120]
[338520421,1726714572916,500.0,0.00024,120]
[338520422,1726714573728,500.0,0.00024,120]
[338520423,1726714574069,651.22,0.00024,120]
[338520424,1726714574743,522.54,0.00024,120]
[338520425,1726714575881,669.06,0.00024,120]
[338520426,1726714576247,500.0,0.00024,120]
[338520427,1726714576311,500.0,0.00024,120]
[338520428,1726714576705,597.62,0.00024,120]
[338520429,1726714577653,1206.5,0.00024,120]
[338520430,1726714579707,500.0,0.00024,120]
[338520431,1726714580155,2427.1,0.00024,120]
[338520432,1726714580275,649.47,0.00024,120]
[338520433,1726714580739,2103.46,0.00024,120]
[338520434,1726714580956,500.0,0.00024,120]
[338520435,1726714581111,500.0,0.00024,120]
[338520436,1726714581985,1072.12,0.00024,120]
[338520437,1726714582047,1276.61,0.00024,120]
[338520438,1726714583016,500.0,0.00024,120]
[338520439,1726714583126,500.0,0.00024,120]
[338520441,1726714583980,500.0,0.00024,120]
[338520442,1726714584147,500.0,0.00024,120]
[338520443,1726714584996,532.79913949,0.00024,120]
[338520444,1726714585934,1105.64,0.00024,120]
[338520445,1726714586621,500.0,0.00024,120]
[338520446,1726714587359,500.0,0.00024,120]
[338520447,1726714588096,500.0,0.00024,120]
[338520448,1726714588273,4585.64,0.00024,120]
[338520449,1726714589815,500.0,0.00024,120]
[338520450,1726714590261,500.0,0.00024,120]
[338520451,1726714591214,500.0,0.00024,120]
[338520452,1726714592258,500.0,0.00024,120]
[338520453,1726714594449,1932.57,0.00024,120]
[338520454,1726714595931,500.0,0.00024,120]
[338520455,1726714597126,1131.35,0.00024,120]
[338520456,1726714597184,813.21,0.00024,120]
[338520457,1726714599620,500.0,0.00024,120]
[338520458,1726714601663,500.0,0.00024,120]
[338520459,1726714603684,500.0,0.00024,120]
[338520460,1726714603748,500.0,0.00024,120]
[338520461,1726714605082,500.0,0.00024,120]
[338520462,1726714605141,1250.24,0.00024,120]
[338520463,1726714605243,619.79,0.00024,120]
[338520464,1726714605395,835.62,0.00024,120]
[338520465,1726714606748,500.0,0.00024,120]
[338520466,1726714607019,500.0,0.00024,120]
[338520467,1726714607426,1659.06,0.00024,120]
[338520468,1726714607755,1179.83,0.00024,120]
[338520469,1726714608473,1238.37,0.00024,120]
[338520470,1726714608742,1776.78,0.00024,120]
[338520471,1726714609528,533.49,0.00024,120]
[338520472,1726714610945,531.07,0.00024,120]
[338520473,1726714611162,501.80125095,0.00024,120]
[338520474,1726714613834,500.0,0.00024,120]
[338520475,1726714616398,500.0,0.00024,120]
[338520476,1726714616521,1855.15,0.00024,120]
[338520477,1726714616822,500.0,0.00024,120]
[338520478,1726714616900,2445.18,0.00024,120]
[338520479,1726714617599,500.0,0.00024,120]
[338520480,1726714619111,500.0,0.00024,120]
[338520481,1726714619166,391.97875181,0.00024,120]
[338520482,1726714622879,500.0,0.00024,120]
[338520483,1726714623198,1243.13,0.00024,120]
[338520484,1726714625125,1027.88,0.00024,120]
[338520485,1726714625254,1062.86,0.00024,120]
[338520486,1726714627161,500.0,0.00024,120]
[338520487,1726714627532,860.5,0.00024,120]
[338520488,1726714627745,500.0,0.00024,120]
[338520489,1726714628351,1022.19,0.00024,120]
[338520490,1726714629150,1229.28,0.00024,120]
[338520491,1726714629285,957.02,0.00024,120]
[338520492,1726714629666,1615.48,0.00024,120]
[338520493,1726714630385,500.0,0.00024,120]
[338520494,1726714630678,500.0,0.00024,120]
[338520495,1726714632975,500.0,0.00024,120]
[338520496,1726714634818,764.75,0.00024,120]
[338520497,1726714635666,500.0,0.00024,120]
[338520498,1726714636057,500.0,0.00024,120]
[338520499,1726714636133,2154.52,0.00024,120]
[338520500,1726714636456,500.0,0.00024,120]
[338520501,1726714636602,1000.0,0.00024,120]
[338520502,1726714638678,1069.62,0.00024,120]
[338520503,1726714638803,1049.53,0.00024,120]
[338520504,1726714639102,1744.09,0.00024,120]
[338520505,1726714639552,500.0,0.00024,120]
[338520507,1726714639983,565.48781803,0.00024,120]
[338520508,1726714640173,500.0,0.00024,120]
[338520512,1726714641700,1338.3,0.00024,120]
[338520513,1726714642409,500.0,0.00024,120]
[338520514,1726714644451,508.07,0.00024,120]
[338520515,1726714644552,500.0,0.00024,120]
[338520516,1726714645349,500.0,0.00024,120]
[338520517,1726714645414,1225.13,0.00024,120]
[338520519,1726714646453,500.0,0.00024,120]
[338520520,1726714647330,1190.39,0.00024,120]
[338520521,1726714647503,500.0,0.00024,120]
[338520522,1726714647610,1083.55,0.00024,120]
[338520523,1726714647668,500.0,0.00024,120]
[338520524,1726714647978,564.22,0.00024,120]
[338520525,1726714649433,1444.7,0.00024,120]
[338520527,1726714650253,557.34235142,0.00024,120]
[338520528,1726714650997,500.0,0.00024,120]
[338520529,1726714651215,752.91,0.00024,120]
[338520530,1726714651698,1036.95,0.00024,120]
[338520532,1726714653452,500.0,0.00024,120]
[338520533,1726714654315,500.0,0.00024,120]
[338520534,1726714654528,500.0,0.00024,120]
[338520535,1726714654593,799.79,0.00024,120]
[338520536,1726714654940,500.0,0.00024,120]
[338520537,1726714655228,500.0,0.00024,120]
[338520538,1726714655496,500.0,0.00024,120]
[338520539,1726714655650,500.0,0.00024,120]
[338520540,1726714655846,500.0,0.00024,120]
[338520541,1726714656012,500.0,0.00024,120]
[338520542,1726714656093,1034.65,0.00024,120]
[338520543,1726714656361,1573.31,0.00024,120]
[338520544,1726714656446,500.0,0.00024,120]
[338520545,1726714656568,500.0,0.00024,120]
[338520546,1726714656690,1035.72,0.00024,120]
[338520547,1726714656767,646.3,0.00024,120]
[338520548,1726714657100,500.0,0.00024,120]
[338520549,1726714657220,500.0,0.00024,120]
[338520550,1726714657340,500.0,0.00024,120]
[338520551,1726714657430,500.0,0.00024,120]
[338520552,1726714657681,500.0,0.00024,120]
[338520553,1726714657954,500.0,0.00024,120]
[338520554,1726714658012,500.0,0.00024,120]
[338520555,1726714658269,500.0,0.00024,120]
[338520556,1726714658333,744.58,0.00024,120]
[338520557,1726714658538,500.0,0.00024,120]
[338520558,1726714658786,412.88903852,0.00024,120]
[338520559,1726714659905,500.0,0.00024,120]
[338520560,1726714660386,500.0,0.00024,120]
[338520561,1726714661958,500.0,0.00024,120]
[338520562,1726714662368,500.0,0.00024,120]
[338520563,1726714662604,1603.0,0.00024,120]
[338520564,1726714663736,500.0,0.00024,120]
[338520565,1726714664766,1310.9,0.00024,120]
[338520566,1726714664969,1108.89,0.00024,120]
[338520567,1726714665684,1344.01,0.00024,120]
[338520568,1726714665743,588.97,0.00024,120]
[338520569,1726714667091,1296.32,0.00024,120]
[338520570,1726714667214,500.0,0.00024,120]
[338520571,1726714668195,500.0,0.00024,120]
[338520572,1726714668881,1350.06,0.00024,120]
[338520573,1726714668945,500.0,0.00024,120]
[338520574,1726714669618,935.61,0.00024,120]
[338520575,1726714669675,2458.81,0.00024,120]
[338520576,1726714672148,224.85291668,0.00024,120]
[338520577,1726714672518,500.0,0.00024,120]
[338520578,1726714674355,500.0,0.00024,120]
[338520579,1726714674911,500.0,0.00024,120]
[338520580,1726714675172,500.0,0.00024,120]
[338520581,1726714675661,1481.05,0.00024,120]
[338520582,1726714676038,500.0,0.00024,120]
[338520583,1726714676441,500.0,0.00024,120]
[338520584,1726714677203,1642.17,0.00024,120]
[338520585,1726714677967,500.0,0.00024,120]
[338520586,1726714679641,1177.75,0.00024,120]
[338520587,1726714679721,500.0,0.00024,120]
[338520588,1726714681098,500.0,0.00024,120]
[338520589,1726714681347,1035.57,0.00024,120]
[338520590,1726714682425,776.27,0.00024,120]
[338520591,1726714682993,500.0,0.00024,120]
[338520592,1726714683978,500.0,0.00024,120]
[338520593,1726714685083,500.21159207,0.00024,120]
[338520594,1726714685896,2296.48,0.00024,120]
[338520595,1726714685955,573.4,0.00024,120]
[338520596,1726714686033,500.0,0.00024,120]
[338520597,1726714686161,2296.48,0.00024,120]
[338520598,1726714686235,500.0,0.00024,120]
[338520599,1726714686417,2296.48,0.00024,120]
[338520600,1726714686484,500.0,0.00024,120]
[338520601,1726714686663,2296.48,0.00024,120]
[338520602,1726714686916,2296.48,0.00024,120]
[338520603,1726714687204,2296.48,0.00024,120]
[338520604,1726714687465,2296.48,0.00024,120]
[338520605,1726714687745,2296.48,0.00024,120]
[338520606,1726714688035,2296.48,0.00024,120]
[338520607,1726714688225,500.0,0.00024,120]
[338520608,1726714688560,2296.48,0.00024,120]
[338520609,1726714688619,675.86,0.00024,120]
[338520610,1726714688872,2296.48,0.00024,120]
[338520611,1726714688949,6404.29,0.00024,120]
[338520612,1726714689018,500.0,0.00024,120]
[338520613,1726714689093,2296.48,0.00024,120]
[338520614,1726714689174,620.6,0.00024,120]
[338520615,1726714689247,2296.48,0.00024,120]
[338520616,1726714689310,619.83,0.00024,120]
[338520617,1726714689444,2296.48,0.00024,120]
[338520618,1726714689785,2296.48,0.00024,120]
[338520619,1726714689942,2296.48,0.00024,120]
[338520620,1726714690108,500.0,0.00024,120]
[338520621,1726714690283,2296.48,0.00024,120]
[338520622,1726714690467,2296.48,0.00024,120]
[338520623,1726714690685,3267.2,0.00024,120]
[338520624,1726714690756,2296.48,0.00024,120]
[338520625,1726714691032,2296.48,0.00024,120]
[338520626,1726714691301,2296.48,0.00024,120]
[338520627,1726714691567,2296.48,0.00024,120]
[338520628,1726714691852,2296.48,0.00024,120]
[338520629,1726714692105,2296.48163114,0.00024,120]
[338520630,1726714692304,500.0,0.00024,120]
[338520631,1726714692598,500.0,0.00024,120]
[338520632,1726714692682,632.6633779,0.00024,120]
[338520633,1726714692853,15041.85,0.00024,120]
[338520634,1726714694274,1380.84,0.00024,120]
[338520635,1726714695070,500.0,0.00024,120]
[338520636,1726714696337,500.0,0.00024,120]
[338520637,1726714696539,746.94,0.00024,120]
[338520638,1726714697117,500.0,0.00024,120]
[338520639,1726714697853,500.0,0.00024,120]
[338520640,1726714698580,1309.81,0.00024,120]
[338520641,1726714699236,500.0,0.00024,120]
[338520642,1726714699940,2270.92,0.00024,120]
[338520643,1726714700051,500.0,0.00024,120]
[338520644,1726714700591,1030.58,0.00024,120]
[338520645,1726714701430,502.05656634,0.00024,120]
[338520646,1726714703187,500.0,0.00024,120]
[338520647,1726714703246,500.0,0.00024,120]
[338520648,1726714703353,960.91,0.00024,120]
[338520649,1726714703518,500.0,0.00024,120]
[338520650,1726714703655,1059.01,0.00024,120]
[338520651,1726714703751,500.0,0.00024,120]
[338520652,1726714704478,1337.59,0.00024,120]
[338520653,1726714704665,500.0,0.00024,120]
[338520654,1726714706016,508.40138029,0.00024,120]
[338520655,1726714706622,986.55,0.00024,120]
[338520656,1726714707945,305.90057556,0.00024,120]
[338520657,1726714707999,500.0,0.00024,120]
[338520658,1726714708061,500.0,0.00024,120]
[338520659,1726714708272,952.23,0.00024,120]
[338520660,1726714708961,500.0,0.00024,120]
[338520661,1726714709295,3353.98,0.00024,120]
[338520662,1726714709370,522.22,0.00024,120]
[338520663,1726714709860,397.76789976,0.00024,120]